[Event "Asian Amateur-ch Open 2022"]
[Site "Muscat"]
[Date "2022.10.05"]
[Round "9.3"]
[White "Srivatsan Karthikeyan"]
[Black "Shahali, Milad"]
[Result "1/2-1/2"]
[ECO "B33"]
[WhiteElo "1711"]
[BlackElo "1910"]
[Annotator "TA"]
[PlyCount "71"]
[EventDate "2022.09.29"]
[EventType "swiss"]
[EventCountry "OMN"]
[SourceTitle "playchess.com"]
[Source "ChessBase"]
[SourceQuality "1"]
[TimeControl "5400+30"]

{[%evp 9,71,-4,0,-6,-4,-79,-2,-10,-8,-7,-5,-12,0,0,0,0,0,-12,-14,-4,112,113,106,56,58,7,0,0,47,0,0,0,0,-38,-28,-28,-25,-62,-65,-71,-52,-47,-37,-49,0,0,0,0,0,-6,0,-4,0,0,0,0,0,0,0,0,0,0,0,0]} 1. e4 {[%emt 0:00:03]} c5 {[%emt 0:00:24]} 2. Nf3 {[%emt 0:00:10]} Nc6 {[%emt 0:00:08]} 3. d4 {[%emt 0:00:06]} cxd4 {[%emt 0:00:05]} 4. Nxd4 {[%emt 0:00:04]} Nf6 {[%emt 0:00:24]} 5. f3 {[%emt 0:00:04]} Qb6 {[%emt 0:00:26]} 6. Nb3 {[%emt 0:01:53] B33: Sicilian: Pelikan and Sveshnikov Variations.} e6 {[%emt 0:00:41]} 7. c4 {[%emt 0:01:45] Inhibits d5.} (7. Nc3 $11 {keeps the balance.}) 7... d5 {[%emt 0:07:13]} (7... a5 $17 {With the idea ...Bb4+.} 8. Qd3 Nb4) 8. cxd5 {[%emt 0:07:18]} exd5 {[%emt 0:00:23]} 9. exd5 {[%emt 0:12:52]} Bb4+ {[%emt 0:02:26]} 10. Nc3 {[%emt 0:04:06]} O-O {[%emt 0:00:11] [#] aiming for ...Rd8.} 11. dxc6 {[%emt 1:07:39]} Re8+ {[%emt 0:00:35]} 12. Be2 {[%emt 0:00:00] Black must now prevent Qd4.} bxc6 {[%emt 0:00:07] [#]} 13. Qd4 $146 {[%emt 0:00:00] Hoping for Qxb6.} ({Predecessor:} 13. Kf1 Bxc3 14. bxc3 Rxe2 15. Qxe2 Ba6 16. c4 Re8 17. Qd3 Rd8 18. Be3 Qc7 19. Qc2 {1-0 (31) Merenyi,G (2081)-Bordos,J (2051) Hungary 2004}) 13... c5 {[%emt 0:13:46][%mdl 1024] Black has compensation.} 14. Qf2 {[%emt 0:00:00]} Ba6 {[%emt 0:01:54]} (14... Bxc3+ $11 15. bxc3 Ba6) 15. O-O $16 {[%emt 0:00:00] [#] Threatens to win with Bxa6.} c4 {[%emt 0:22:34]} 16. Nd4 {[%emt 0:00:00]} (16. Na4 $16 Rxe2 17. Nxb6 Rxf2 18. Rxf2 axb6 19. Bd2) 16... Bc5 {[%emt 0:01:05]} 17. Na4 {[%emt 0:00:00]} (17. Rd1 $14 Rad8 18. Na4 (18. Be3 $2 Rxe3 19. Na4 Rxe2 $19) 18... Bxd4 19. Nxb6 Bxf2+ 20. Kxf2 Rxd1 21. Bxd1 axb6 22. a4) 17... Bxd4 $11 {[%emt 0:00:47]} 18. Nxb6 {[%emt 0:00:00]} Bxf2+ {[%emt 0:00:21]} (18... Bxb6 $11 19. Re1 (19. Be3 $2 Bxe3 20. Rfd1 Bxf2+ $19) 19... c3) 19. Rxf2 {[%emt 0:00:00]} (19. Kxf2 $14 {is superior.} axb6 20. Rd1) 19... axb6 {[%emt 0:00:09]} 20. Bg5 {[%emt 0:00:00]} Nd5 {[%emt 0:08:02]} 21. f4 {[%emt 0:00:00]} f6 {[%emt 0:05:26]} 22. Bf3 {[%emt 0:00:00]} Rad8 {[%emt 0:00:26]} 23. Bxd5+ {[%emt 0:00:00]} Rxd5 {[%emt 0:00:06]} 24. Bh4 {[%emt 0:00:00]} Red8 {[%emt 0:00:51] And now ...Rd1+ would win.} 25. Rc2 {[%emt 0:00:00]} Rd2 {[%emt 0:01:07]} 26. Rac1 {[%emt 0:00:00]} Bb7 {[%emt 0:01:02]} (26... Rxc2 $15 {was preferrable.} 27. Rxc2 Rd4) 27. Be1 {[%emt 0:00:00] The position is equal.} Rxc2 {[%emt 0:08:16]} 28. Rxc2 {[%emt 0:00:00][%mdl 4096] Endgame KRB-KRB} Bd5 {[%emt 0:00:44]} 29. Bc3 {[%emt 0:00:00]} Be4 {[%emt 0:01:49]} 30. Rd2 {[%emt 0:00:00]} Rxd2 {[%emt 0:00:08]} 31. Bxd2 {[%emt 0:00:00] KB-KB} Kf7 {[%emt 0:00:48]} 32. Kf2 {[%emt 0:00:00]} Ke6 {[%emt 0:00:13]} 33. g4 {[%emt 0:00:00]} Kd5 {[%emt 0:00:50]} 34. Bc3 {[%emt 0:00:00]} Bb1 {[%emt 0:00:17]} 35. a3 {[%emt 0:00:00]} Ke4 {[%emt 0:00:48]} 36. Kg3 {[%emt 0:12:30] Weighted Error Value: White=0.16 (very precise) /Black=0.15 (very precise)} 1/2-1/2

[Event "Asian Amateur-ch Open 2022"]
[Site "Muscat"]
[Date "2022.10.05"]
[Round "9.4"]
[White "Ranjith, R.k."]
[Black "Junaid Sohail"]
[Result "1-0"]
[ECO "A00"]
[WhiteElo "1706"]
[BlackElo "1981"]
[Annotator "TA"]
[PlyCount "51"]
[EventDate "2022.09.29"]
[EventType "swiss"]
[EventCountry "OMN"]
[SourceTitle "playchess.com"]
[Source "ChessBase"]
[SourceQuality "1"]
[TimeControl "5400+30"]

{[%evp 9,51,0,0,0,1,0,30,23,25,27,32,0,45,32,35,24,43,28,135,133,152,147,269,270,650,646,641,627,1206,1243,1245,1217,1545,1526,1658,1684,2644,2620,29982,10868,29990,29991,29991,29992]} 1. Nc3 {[%emt 0:00:08]} d5 {[%emt 0:01:43][%cal Bd7d5,Bd5d4][%mdl 32]} 2. e4 {[%emt 0:00:34]} d4 {[%emt 0:01:08]} 3. Nce2 {[%emt 0:00:10]} e5 {[%emt 0:00:16]} 4. Ng3 {[%emt 0:00:20]} Nf6 {[%emt 0:01:04]} 5. Bc4 {[%emt 0:00:15]} Bd6 {[%emt 0:00:14]} 6. d3 {[%emt 0:03:46] A00: Irregular Openings.} Nc6 {[%emt 0:04:41]} 7. a3 {[%emt 0:00:43]} a6 {[%emt 0:00:32]} 8. Nf3 {[%emt 0:02:45] White has an edge.} h6 {[%emt 0:00:20] [#]} 9. h3 $146 {[%emt 0:02:56]} ({Predecessor:} 9. O-O O-O 10. Ne1 Bg4 11. f3 Bd7 12. Qe2 Re8 13. f4 Bg4 14. Qf2 Bc8 15. h3 {1-0 (40) Zengin,H (1586)-Eraydin,B (1385) Cesme 2016}) 9... Na5 {[%emt 0:01:35]} 10. Bd5 {[%emt 0:07:38]} c6 {[%emt 0:00:08]} 11. Ba2 {[%emt 0:00:03] [#] b4 is the strong threat.} (11. Bxf7+ {looks sharper.} Kxf7 12. b4 c5 13. bxa5 Qxa5+ 14. Bd2) 11... c5 {[%emt 0:00:03] Prevents b4.} 12. Nh4 {[%emt 0:06:54]} g6 {[%emt 0:04:19] Against Nhf5} 13. O-O {[%emt 0:04:48]} b5 {[%emt 1:20:57]} (13... Nc6 $11) 14. f4 $16 {[%emt 0:12:26][%cal Ob2b4]} c4 {[%emt 0:00:00]} 15. Qe1 {[%emt 0:07:24]} cxd3 {[%emt 0:00:00]} (15... Bb8 $16) 16. cxd3 $18 {[%emt 0:00:22]} Nb7 $2 {[%emt 0:00:00]} (16... Nc6 17. Qf2 Rh7) 17. fxe5 {[%emt 0:01:26]} Bxe5 {[%emt 0:00:00]} 18. Nf3 {[%emt 0:00:12][%cal Bh4f3,Bf3e5,Be5g6,Bg6e5][%mdl 32]} Nd7 {[%emt 0:00:00] [#]} 19. Bxf7+ {[%emt 0:00:26][%mdl 512]} Kxf7 {[%emt 0:00:00]} 20. Nxe5+ {[%emt 0:00:08][%mdl 64] Discovered Attack (Double check)} Kg8 {[%emt 0:00:00]} 21. Nxg6 {[%emt 0:00:52] Hoping for Nh5.} Rh7 {[%emt 0:00:00]} 22. Nf5 {[%emt 0:00:50][%csl LRd4,LRh6]} Nf6 {[%emt 0:00:00]} 23. Nxh6+ {[%emt 0:01:40]} Kg7 {[%emt 0:00:00]} 24. Qg3 {[%emt 0:00:13]} (24. e5 $142 Kxg6 25. Rxf6+ Kg7 26. Qg3+ Kh8 27. Nf7+ Rxf7 28. Rxf7 Bg4 29. Qxg4 Qf8 30. Qh5+ Qh6 31. Qxh6+ Kg8 32. Qh7#) 24... Rxh6 {[%emt 0:00:00]} 25. Bxh6+ {[%emt 0:00:09]} Kxh6 {[%emt 0:00:00]} 26. Ne5 {[%emt 0:00:13] Weighted Error Value: White=0.06 (flawless) /Black=1.12} 1-0

[Event "Asian Amateur-ch Open 2022"]
[Site "Muscat"]
[Date "2022.10.05"]
[Round "9.5"]
[White "Shelke Omkar"]
[Black "Dadabaev, Zhanybek"]
[Result "0-1"]
[ECO "D02"]
[WhiteElo "1460"]
[BlackElo "1902"]
[Annotator "TA"]
[PlyCount "140"]
[EventDate "2022.09.29"]
[EventType "swiss"]
[EventCountry "OMN"]
[SourceTitle "playchess.com"]
[Source "ChessBase"]
[SourceQuality "1"]
[TimeControl "5400+30"]

{[%evp 9,139,-37,-20,-83,-80,-86,-79,-79,-75,-75,-83,-136,-121,-164,-164,-165,-149,-177,-147,-135,-143,-252,-264,-256,-175,-183,-193,-178,-160,-197,-172,-135,-143,-126,-102,-118,-118,-158,-158,-188,-127,-134,-91,-114,-49,-47,-50,-75,-42,-43,-43,-43,-43,-47,0,0,0,0,0,0,2,3,25,20,80,49,43,37,32,0,0,0,0,0,0,0,0,0,0,0,0,2,7,0,0,0,0,0,0,0,0,0,0,0,0,0,0,0,0,0,0,-29974,-29971,-6609,-6412,-5439,-4931,-2540,-2309,-29994,-29995,-29995,-29991,-29997,-29989,-29989,-29983,-29987,0,0,0,0,0,0,0,-29988,-29989,-29992,-29993,-29998,-29999,-29999]} 1. d4 {[%emt 0:00:02]} d5 {[%emt 0:00:10]} 2. e3 {[%emt 0:00:11]} e6 {[%emt 0:00:10]} 3. Nf3 {[%emt 0:00:03]} c5 {[%emt 0:00:08]} 4. Ne5 {[%emt 0:01:52]} Nc6 {[%emt 0:02:11]} 5. f4 {[%emt 0:00:10]} Nf6 {[%emt 0:03:07]} 6. Bd3 {[%emt 0:06:32] D02: 1 d4 d5 2 Nf3 sidelines, including 2...Nf6 3 g3 and 2...Nf6 3 Bf4.} (6. c3 $11) 6... cxd4 $17 {[%emt 0:06:16]} 7. Nxc6 {[%emt 0:04:16]} bxc6 {[%emt 0:00:01]} 8. exd4 {[%emt 0:00:01] Black is better.} Qb6 {[%emt 0:01:58]} 9. c3 {[%emt 0:08:52]} c5 {[%emt 0:04:59] [#]} 10. Qa4+ $146 {[%emt 0:06:50]} (10. a4 $142) ({Predecessor:} 10. dxc5 Bxc5 11. Qe2 a5 12. Nd2 a4 13. Rb1 O-O 14. Nf3 Qc7 15. Ne5 a3 16. b3 {0-1 (39) Pieper,H (1670)-Link,U (2205) Wattens 1998}) 10... Bd7 {[%emt 0:00:28]} 11. Qa6 {[%emt 0:00:19]} Qc7 {[%emt 0:04:20]} ({Stronger than} 11... cxd4 12. Qxb6 axb6 13. cxd4 $17) 12. O-O {[%emt 0:08:31]} Rb8 {[%emt 0:01:38] Inhibits Bb5.} 13. Be2 {[%emt 0:10:08]} Bd6 {[%emt 0:07:32]} 14. Qd3 {[%emt 0:03:28]} O-O {[%emt 0:02:06]} 15. g4 {[%emt 0:07:10]} (15. Qe3 $17) 15... cxd4 {[%emt 0:01:29]} 16. cxd4 {[%emt 0:00:19]} Bb5 {[%emt 0:00:34]} 17. Qf3 {[%emt 0:01:17]} Bxe2 {[%emt 0:01:30]} 18. Qxe2 {[%emt 0:00:02]} Qb6 {[%emt 0:01:00]} 19. Rd1 {[%emt 0:02:18]} Ne4 {[%emt 0:01:24]} 20. Nc3 {[%emt 0:01:21]} Nxc3 {[%emt 0:02:44]} 21. bxc3 {[%emt 0:00:01]} Rfc8 {[%emt 0:02:44]} 22. Bd2 {[%emt 0:02:17]} Qc7 {[%emt 0:01:16]} 23. Qe3 {[%emt 0:02:50]} Rb2 {[%emt 0:01:57][%cal Og7g5]} 24. Rf1 {[%emt 0:00:34]} Rcb8 {[%emt 0:03:12]} ({Black should play} 24... g5 $19 25. fxg5 Bxh2+ 26. Kh1 Qg3 27. Qxg3 Bxg3) 25. Rf2 {[%emt 0:05:53]} Qe7 {[%emt 0:20:25] Black has more active pieces. The white rooks are badly placed.} 26. a4 {[%emt 0:08:58]} f5 {[%emt 0:10:39]} (26... Rb1+ $17 27. Rxb1 Rxb1+ 28. Kg2 Ra1) 27. Re1 {[%emt 0:03:49]} Rb1 {[%emt 0:04:31]} 28. Rfe2 {[%emt 0:02:02]} Rxe1+ {[%emt 0:00:58]} (28... fxg4 {seems wilder.} 29. Bc1 Bc7 30. Qg3 Qf7) 29. Rxe1 {[%emt 0:00:33]} fxg4 {[%emt 0:02:58] Threatens to win with ...Kf7.} 30. Qxe6+ {[%emt 0:00:44]} Qxe6 {[%emt 0:00:01]} 31. Rxe6 {[%emt 0:00:02][%mdl 4096] Endgame KRB-KRB} Rd8 {[%emt 0:00:33]} (31... Rb1+ $15 32. Kf2 Bb8) 32. f5 $11 {[%emt 0:04:38]} Kf7 {[%emt 0:00:23]} 33. Bg5 {[%emt 0:01:16]} Rd7 {[%emt 0:00:04]} 34. Kg2 {[%emt 0:01:58]} h6 {[%emt 0:02:24]} 35. Bh4 {[%emt 0:02:06]} Bf4 {[%emt 0:00:12]} 36. Bg3 {[%emt 0:01:42]} Bd2 {[%emt 0:02:17]} (36... g5 $11 {remains equal.}) 37. Be5 {[%emt 0:01:40]} h5 $1 {[%emt 0:02:12]} 38. Rg6 {[%emt 0:00:46]} Kf8 {[%emt 0:04:40]} 39. h3 {[%emt 0:01:57]} gxh3+ {[%emt 0:00:47]} 40. Kxh3 {[%emt 0:00:01]} Rf7 $1 {[%emt 0:01:30]} 41. Bd6+ {[%emt 0:00:59]} Kg8 {[%emt 0:00:21]} 42. Be5 {[%emt 0:00:45]} Kh7 {[%emt 0:00:18]} (42... Bxc3 $2 43. f6 $18) 43. Kh4 {[%emt 0:01:56]} Bh6 {[%emt 0:02:24]} 44. Rd6 {[%emt 0:00:47]} Rxf5 {[%emt 0:00:46]} 45. Rxd5 {[%emt 0:00:24]} Bd2 {[%emt 0:00:35]} 46. c4 {[%emt 0:00:35]} Be1+ {[%emt 0:00:42]} 47. Kh3 {[%emt 0:00:18] Black must now prevent Rd7.} g5 {[%emt 0:00:18]} 48. Rd7+ {[%emt 0:00:28]} Kg6 {[%emt 0:00:02]} 49. Rg7+ {[%emt 0:00:02]} Kh6 {[%emt 0:00:18][%cal Of5e5] Hoping for ...Rxe5!} 50. Rxa7 {[%emt 0:00:56] Strongly threatening Ra6+.} Rf2 {[%emt 0:00:14] And now ...g4+ would win.} 51. Ra6+ {[%emt 0:00:37]} Kh7 {[%emt 0:00:16]} 52. Ra7+ {[%emt 0:00:05]} Kg6 {[%emt 0:00:11]} (52... Kh6 $5 53. Ra6+ $8 Kh7 54. Ra7+ Kg6 55. Ra6+ Kh7 $11) 53. Ra6+ $1 {[%emt 0:01:06]} Kf7 {[%emt 0:00:01]} (53... Kh7 $5 54. Ra7+ $8 Kg6 55. Ra6+ Kh7 $11) 54. Ra7+ {[%emt 0:00:09]} Ke6 {[%emt 0:01:03]} (54... Kg6 $5 55. Ra6+ $8 Kh7 56. Ra7+ Kg6 $11) 55. d5+ $2 {[%emt 0:00:51][%mdl 8192] [#]} (55. Rg7 $11 g4+ 56. Kh4 Rf5+ 57. Bg3 Bxg3+ 58. Kxg3) 55... Kxe5 {[%emt 0:01:29] KRB-KR} 56. Re7+ {[%emt 0:00:02]} Kf4 {[%emt 0:00:01]} 57. Rf7+ {[%emt 0:00:49]} Ke3 {[%emt 0:00:13]} 58. Re7+ {[%emt 0:00:37]} Kd2 {[%emt 0:00:23] ( -> ...g4+)} 59. Rxe1 Kxe1 $19 {[%emt 0:00:01] KR-K3P} 60. d6 {[%emt 0:00:34]} Rc2 {[%emt 0:00:37]} 61. a5 {[%emt 0:00:53]} Rc3+ {[%emt 0:01:34]} 62. Kg2 {[%emt 0:00:06]} Ra3 {[%emt 0:01:39]} 63. c5 {[%emt 0:00:38]} Rxa5 $2 {[%emt 0:00:27] KR-KPP} (63... h4 {mates} 64. d7 Rd3 65. d8=B Rxd8 66. Kh3 Rd3+ 67. Kg4 h3 68. Kf5 h2 69. Ke4 Rd7 70. Kf5 h1=Q 71. Kg6 Qd5 72. a6 Rf7 73. Kh6 Qf5 74. Kh5 Rh7#) 64. d7 $11 {[%emt 0:00:51]} Ra2+ {[%emt 0:00:37]} 65. Kg3 {[%emt 0:00:01]} h4+ {[%emt 0:00:21]} 66. Kh3 {[%emt 0:00:17]} Ra3+ {[%emt 0:00:05]} 67. Kh2 $2 {[%emt 0:00:41][%mdl 8192] [#]} (67. Kg4 $11 Rg3+ 68. Kf5) 67... Rd3 $1 {[%emt 0:00:30] Black mates.} 68. c6 {[%emt 0:00:06]} g4 {[%emt 0:00:40]} ({Weaker is} 68... Rd2+ 69. Kh3 $11) 69. c7 {[%emt 0:00:29]} Kf2 {[%emt 0:00:35][%csl Gg4][%cal Rd3h3]} 70. d8=Q {[%emt 0:00:49]} Rh3# {[%emt 0:01:21] Weighted Error Value: White=0.32/Black=0.11 (very precise)} 0-1

[Event "Asian Amateur-ch Open 2022"]
[Site "Muscat"]
[Date "2022.10.05"]
[Round "9.6"]
[White "Atharv Bansal"]
[Black "Shreyas Seshadri Nallore"]
[Result "0-1"]
[ECO "D00"]
[WhiteElo "1164"]
[BlackElo "1791"]
[Annotator "NA RC COMBH"]
[PlyCount "120"]
[EventDate "2022.09.29"]
[EventType "swiss"]
[EventCountry "OMN"]
[SourceTitle "playchess.com"]
[Source "ChessBase"]
[SourceQuality "1"]
[TimeControl "5400+30"]

1. d4 {[%emt 0:00:17]} Nf6 {[%emt 0:00:09]} 2. Nc3 {[%emt 0:00:37]} d5 {[%emt 0:00:21]} 3. f3 {[%emt 0:01:10]} e6 {[%emt 0:07:25]} 4. e4 {[%emt 0:01:18]} dxe4 {[%emt 0:00:26]} 5. fxe4 {[%emt 0:00:24]} Bb4 {[%emt 0:02:21]} 6. Bg5 {[%emt 0:05:24]} h6 {[%emt 0:02:42]} 7. Bxf6 {[%emt 0:01:00]} Qxf6 {[%emt 0:00:10]} 8. Nf3 {[%emt 0:00:17]} c5 {[%emt 0:03:26]} 9. Bb5+ {[%emt 0:08:21]} Bd7 {[%emt 0:02:59]} 10. O-O {[%emt 0:05:02]} cxd4 {[%emt 0:07:42]} 11. Nxd4 {[%emt 0:06:24]} Qe5 {[%emt 0:02:41]} 12. Qd3 {[%emt 0:09:35]} Bc5 {[%emt 0:08:46]} 13. Bxd7+ {[%emt 0:01:44]} Nxd7 {[%emt 0:00:14]} 14. Rad1 {[%emt 0:01:44]} Rd8 {[%emt 0:07:54]} 15. Kh1 {[%emt 0:02:43]} O-O {[%emt 0:04:36]} 16. Nf3 {[%emt 0:04:25]} Qc7 {[%emt 0:02:17]} 17. Qe2 {[%emt 0:03:45]} Nf6 {[%emt 0:04:01]} 18. Nd2 {[%emt 0:06:18]} Bd4 {[%emt 0:06:19]} 19. Ndb1 {[%emt 0:12:01]} Be5 {[%emt 0:05:36]} 20. g3 {[%emt 0:04:11]} Qb6 {[%emt 0:02:08]} 21. b3 {[%emt 0:04:57]} Qc6 {[%emt 0:03:04]} 22. Rd3 {[%emt 0:05:04]} Bxc3 {[%emt 0:05:57]} 23. Nxc3 {[%emt 0:00:46]} Rxd3 {[%emt 0:01:02]} 24. Qxd3 {[%emt 0:00:58]} Rc8 {[%emt 0:00:14]} 25. Rf3 {[%emt 0:01:11]} Ng4 {[%emt 0:00:26]} 26. Qd4 {[%emt 0:01:44]} f5 {[%emt 0:02:21]} 27. h3 {[%emt 0:02:09]} Nf6 {[%emt 0:00:55]} 28. Re3 {[%emt 0:01:16]} fxe4 {[%emt 0:03:38]} 29. Nxe4 {[%emt 0:00:54]} Nxe4 {[%emt 0:06:15]} 30. Rxe4 {[%emt 0:00:29]} Qxc2 {[%emt 0:00:29]} 31. Rxe6 {[%emt 0:00:18]} Qb1+ {[%emt 0:00:59]} 32. Kg2 {[%emt 0:00:24]} Qxa2+ {[%emt 0:00:39]} 33. Kf3 {[%emt 0:00:18]} Qxb3+ {[%emt 0:00:10]} 34. Re3 {[%emt 0:00:04]} Rf8+ {[%emt 0:00:08]} 35. Kg4 {[%emt 0:00:55]} Qf7 {[%emt 0:00:20]} 36. Qe4 {[%emt 0:00:45]} Kh8 {[%emt 0:01:07]} 37. h4 {[%emt 0:00:56]} Qd7+ {[%emt 0:00:30]} 38. Qe6 {[%emt 0:00:15]} Qd1+ {[%emt 0:00:50]} 39. Kh3 {[%emt 0:00:15]} Qf1+ {[%emt 0:00:55]} 40. Kg4 {[%emt 0:00:09]} b5 {[%emt 0:00:58]} 41. Qd7 {[%emt 0:00:48]} Qc4+ {[%emt 0:00:25]} 42. Kh3 {[%emt 0:00:22]} Qc8 {[%emt 0:00:47]} 43. Re7 {[%emt 0:00:23]} Qxd7+ {[%emt 0:00:43]} 44. Rxd7 {[%emt 0:00:09]} a6 {[%emt 0:00:40]} 45. Rb7 {[%emt 0:00:34]} Rf6 {[%emt 0:00:39]} 46. Kg4 {[%emt 0:01:24]} Rc6 {[%emt 0:00:05]} 47. Kh5 {[%emt 0:00:24]} Kh7 {[%emt 0:00:46]} 48. g4 {[%emt 0:00:06]} Rd6 {[%emt 0:03:31]} 49. g5 {[%emt 0:00:50]} Rc6 {[%emt 0:00:06]} 50. Kg4 {[%emt 0:01:07]} hxg5 {[%emt 0:00:07]} 51. Kxg5 {[%emt 0:01:25]} Rc5+ {[%emt 0:00:15]} 52. Kg4 {[%emt 0:00:41]} a5 {[%emt 0:00:04]} 53. Ra7 {[%emt 0:08:20]} b4 {[%emt 0:00:18]} 54. Rb7 {[%emt 0:00:00]} Rc4+ {[%emt 0:00:07]} 55. Kg5 {[%emt 0:00:00]} a4 {[%emt 0:00:06]} 56. Ra7 {[%emt 0:00:00]} b3 {[%emt 0:00:29]} 57. Rb7 {[%emt 0:00:00]} Rc5+ {[%emt 0:00:12]} 58. Kg4 {[%emt 0:00:00]} Ra5 {[%emt 0:00:11]} 59. Rb4 {[%emt 0:00:00]} a3 {[%emt 0:00:09]} 60. Rxb3 {[%emt 0:03:30]} a2 {[%emt 0:00:05]} 0-1

[Event "Asian Amateur-ch Open 2022"]
[Site "Muscat"]
[Date "2022.10.05"]
[Round "9.7"]
[White "Sharma Pankaj"]
[Black "Vijay Chauhan"]
[Result "1/2-1/2"]
[ECO "B10"]
[WhiteElo "1764"]
[BlackElo "1526"]
[Annotator "NA RC COMBH"]
[PlyCount "185"]
[EventDate "2022.09.29"]
[EventType "swiss"]
[EventCountry "OMN"]
[SourceTitle "playchess.com"]
[Source "ChessBase"]
[SourceQuality "1"]
[TimeControl "5400+30"]

1. e4 {[%emt 0:00:11]} c6 {[%emt 0:00:12]} 2. c4 {[%emt 0:00:07]} d5 {[%emt 0:00:02]} 3. exd5 {[%emt 0:00:06]} cxd5 {[%emt 0:00:02]} 4. cxd5 {[%emt 0:00:05]} Qxd5 {[%emt 0:06:20]} 5. Nc3 {[%emt 0:00:02]} Qa5 {[%emt 0:00:22]} 6. Bc4 {[%emt 0:03:02]} e6 {[%emt 0:03:52]} 7. Nf3 {[%emt 0:00:22]} Nf6 {[%emt 0:01:09]} 8. O-O {[%emt 0:00:04]} Be7 {[%emt 0:01:27]} 9. d4 {[%emt 0:00:47]} O-O {[%emt 0:01:48]} 10. a3 {[%emt 0:03:36]} Nbd7 {[%emt 0:05:27]} 11. Bd2 {[%emt 0:11:26]} Qh5 {[%emt 0:07:03]} 12. Ne5 {[%emt 0:04:39]} Qxd1 {[%emt 0:02:21]} 13. Rfxd1 {[%emt 0:00:03]} Nb6 {[%emt 0:00:17]} 14. Ba2 {[%emt 0:00:06]} h6 {[%emt 0:02:28]} 15. Rac1 {[%emt 0:00:32]} a6 {[%emt 0:02:13]} 16. g4 {[%emt 0:10:53]} Rd8 {[%emt 0:04:16]} 17. g5 {[%emt 0:01:23]} hxg5 {[%emt 0:02:22]} 18. Bxg5 {[%emt 0:00:18]} Kf8 {[%emt 0:00:34]} 19. Ne2 {[%emt 0:05:39]} Nfd5 {[%emt 0:04:58]} 20. Bd2 {[%emt 0:00:16]} a5 {[%emt 0:16:49]} 21. Nc3 {[%emt 0:16:22]} Nf6 {[%emt 0:08:35]} 22. Bg5 {[%emt 0:02:22]} Nfd5 {[%emt 0:03:00]} 23. Bxe7+ {[%emt 0:02:15]} Nxe7 {[%emt 0:00:34]} 24. Rd3 {[%emt 0:01:54]} f6 {[%emt 0:02:35]} 25. Nc4 {[%emt 0:03:48]} Nbd5 {[%emt 0:00:50]} 26. Ne3 {[%emt 0:06:11]} Nf4 {[%emt 0:01:55]} 27. Rd2 {[%emt 0:00:37]} Ra6 {[%emt 0:03:09]} 28. d5 {[%emt 0:03:19]} exd5 {[%emt 0:02:26]} 29. Ncxd5 {[%emt 0:00:47]} Nfxd5 {[%emt 0:02:06]} 30. Bxd5 {[%emt 0:03:32]} Rad6 {[%emt 0:00:23]} 31. Rdc2 {[%emt 0:01:23]} Nxd5 {[%emt 0:02:26]} 32. Rxc8 {[%emt 0:00:48]} Nxe3 {[%emt 0:02:38]} 33. Rxd8+ {[%emt 0:01:41]} Rxd8 {[%emt 0:00:02]} 34. fxe3 {[%emt 0:00:05]} Ke7 {[%emt 0:02:06]} 35. Rc2 {[%emt 0:01:00]} g5 {[%emt 0:01:14]} 36. Kf2 {[%emt 0:00:22]} Ke6 {[%emt 0:01:30]} 37. Kf3 {[%emt 0:00:11]} Rd1 {[%emt 0:01:42]} 38. a4 {[%emt 0:03:54]} Rf1+ {[%emt 0:00:39]} 39. Ke2 {[%emt 0:01:40]} Ra1 {[%emt 0:00:37]} 40. Rc7 {[%emt 0:01:16]} Rxa4 {[%emt 0:00:13]} 41. Rxb7 {[%emt 0:00:01]} Rh4 {[%emt 0:01:30]} 42. Rb6+ {[%emt 0:00:27]} Kf7 {[%emt 0:00:02]} 43. Rb5 {[%emt 0:01:19]} Rxh2+ {[%emt 0:00:04]} 44. Kf3 {[%emt 0:00:05]} Kg6 {[%emt 0:01:09]} 45. Rxa5 {[%emt 0:00:50]} Rxb2 {[%emt 0:00:04]} 46. Ra6 {[%emt 0:00:17]} Rb1 {[%emt 0:00:23]} 47. Kf2 {[%emt 0:01:16]} g4 {[%emt 0:00:43]} 48. Kg3 {[%emt 0:00:25]} Rb4 {[%emt 0:00:30]} 49. Kf2 {[%emt 0:01:23]} Re4 {[%emt 0:01:30]} 50. Ra8 {[%emt 0:01:01]} Kf5 {[%emt 0:01:04]} 51. Ra7 {[%emt 0:00:54]} Re5 {[%emt 0:00:23]} 52. Rg7 {[%emt 0:00:38]} Re8 {[%emt 0:00:49]} 53. Ra7 {[%emt 0:00:56]} Kg6 {[%emt 0:00:30]} 54. Ra4 {[%emt 0:00:47]} Kg5 {[%emt 0:00:43]} 55. Ra7 {[%emt 0:00:06]} Rh8 {[%emt 0:01:08]} 56. Ra5+ {[%emt 0:00:58]} Kg6 {[%emt 0:01:51]} 57. Kg3 {[%emt 0:00:53]} f5 {[%emt 0:01:17]} 58. Kf4 {[%emt 0:00:46]} Rh3 {[%emt 0:02:01]} 59. Ra6+ {[%emt 0:00:28]} Kf7 {[%emt 0:00:04]} 60. Kxf5 {[%emt 0:01:34]} g3 {[%emt 0:00:43]} 61. Ra7+ {[%emt 0:00:25]} Ke8 {[%emt 0:00:14]} 62. Rg7 {[%emt 0:02:02]} Kf8 {[%emt 0:00:32]} 63. Rg4 {[%emt 0:01:13]} Kf7 {[%emt 0:01:07]} 64. e4 {[%emt 0:00:51]} Ke7 {[%emt 0:00:49]} 65. e5 {[%emt 0:00:39]} Rh5+ {[%emt 0:00:02]} 66. Ke4 {[%emt 0:00:21]} Rh2 {[%emt 0:00:45]} 67. Rg7+ {[%emt 0:00:43]} Ke6 {[%emt 0:00:09]} 68. Rg6+ {[%emt 0:00:07]} Ke7 {[%emt 0:00:03]} 69. Rxg3 {[%emt 0:03:04]} Re2+ {[%emt 0:00:11]} 70. Kf4 {[%emt 0:00:28]} Rf2+ {[%emt 0:00:33]} 71. Ke3 {[%emt 0:00:11]} Ra2 {[%emt 0:00:11]} 72. Kd4 {[%emt 0:00:34]} Rd2+ {[%emt 0:00:15]} 73. Ke4 {[%emt 0:01:03]} Re2+ {[%emt 0:00:02]} 74. Kd4 {[%emt 0:01:42]} Rd2+ {[%emt 0:00:03]} 75. Ke3 {[%emt 0:00:06]} Ra2 {[%emt 0:00:04]} 76. Rg6 {[%emt 0:00:30]} Ra4 {[%emt 0:00:11]} 77. Rf6 {[%emt 0:00:25]} Rb4 {[%emt 0:00:23]} 78. Ra6 {[%emt 0:00:34]} Rh4 {[%emt 0:00:09]} 79. Rd6 {[%emt 0:00:31]} Ra4 {[%emt 0:00:05]} 80. Rd4 {[%emt 0:00:42]} Rxd4 {[%emt 0:00:11]} 81. Kxd4 {[%emt 0:00:02]} Ke6 {[%emt 0:00:02]} 82. Ke4 {[%emt 0:00:09]} Ke7 {[%emt 0:00:05]} 83. Kf5 {[%emt 0:00:04]} Kf7 {[%emt 0:00:02]} 84. e6+ {[%emt 0:00:09]} Ke7 {[%emt 0:00:04]} 85. Ke5 {[%emt 0:00:03]} Ke8 {[%emt 0:00:05]} 86. Kd5 {[%emt 0:00:17]} Ke7 {[%emt 0:00:02]} 87. Ke5 {[%emt 0:00:06]} Ke8 {[%emt 0:00:02]} 88. Kd6 {[%emt 0:00:04]} Kd8 {[%emt 0:00:02]} 89. Kd5 {[%emt 0:00:29]} Ke7 {[%emt 0:00:03]} 90. Ke5 {[%emt 0:00:09]} Ke8 {[%emt 0:00:05]} 91. Kf6 {[%emt 0:00:00]} Kf8 {[%emt 0:00:02]} 92. e7+ {[%emt 0:00:04]} Ke8 {[%emt 0:00:02]} 93. Ke6 {[%emt 0:00:11]} 1/2-1/2